[Event "44th Chess Olympiad Women 2022"]
[Site "Chennai"]
[Date "2022.08.03"]
[Round "6.24"]
[White "Trippold, Denise"]
[Black "Diaz Charpentier, Kristel Meliss"]
[Result "1/2-1/2"]
[WhiteElo "2151"]
[BlackElo "1989"]
[Annotator "TA"]
[PlyCount "89"]
[EventDate "2022.??.??"]
[TimeControl "60"]

{[%evp 23,89,45,43,45,51,45,54,49,71,70,68,79,76,76,76,76,76,80,76,76,107,54,
44,63,51,51,49,45,50,37,37,6,36,25,31,20,29,6,18,3,2,0,0,0,0,0,6,3,3,3,3,0,0,0,
0,0,0,0,0,0,2,2,2,-8,-8,-8,0,0]} 1. d4 {[%emt 0:00:05]} Nf6 {[%emt 0:00:11]} 2.
c4 {[%emt 0:00:14]} e6 {[%emt 0:00:04]} 3. Nf3 {[%emt 0:00:18]} Bb4+ {[%emt 0:
00:00]} 4. Nbd2 {[%emt 0:00:19]} O-O {[%emt 0:00:16]} 5. a3 {[%emt 0:00:40]}
Bxd2+ {[%emt 0:00:05]} 6. Qxd2 {[%emt 0:00:12]} b6 {[%emt 0:01:47]} 7. e3 {
[%emt 0:00:48]} Bb7 {[%emt 0:00:25]} 8. Be2 {[%emt 0:00:07]} d6 {[%emt 0:01:28]
} 9. b4 {[%emt 0:01:31]} a5 {[%emt 0:01:31]} 10. Bb2 {[%emt 0:00:32]} Nbd7 {
[%emt 0:00:35]} 11. O-O {[%emt 0:00:26]} Ne4 {[%emt 0:01:20]} 12. Qc2 {[%emt 0:
00:00]} f5 {[%emt 0:01:25]} 13. d5 {[%emt 0:01:33] E14: Queen's Indian:
Classical Variation (4 e3).} e5 {[%emt 0:00:16] Inhibits Nd4.} 14. Nd2 {
[%emt 0:03:53]} Nxd2 {[%emt 0:08:07]} 15. Qxd2 {[%emt 0:00:07] White is
slightly better.} f4 {[%emt 0:01:14]} 16. exf4 {[%emt 0:07:56]} Rxf4 {[%emt 0:
00:00] [#]} 17. Rae1 $146 {[%emt 0:12:42]} ({Predecessor:} 17. g3 Rf8 18. Bg4
Kh8 19. Rae1 axb4 20. axb4 b5 21. cxb5 Nb6 22. Be6 Ra2 23. Ra1 {0-1 (54)
Potkin,V (2613)-Savic,M (2525) Budva 2009}) 17... axb4 {[%emt 0:08:05]} 18.
axb4 {[%emt 0:00:22]} b5 {[%emt 0:00:43]} 19. c5 {[%emt 0:11:46]} dxc5 {
[%emt 0:13:32]} 20. bxc5 {[%emt 0:04:17]} Nxc5 {[%emt 0:01:01]} 21. Bxe5 {
[%emt 0:03:25]} Rf7 {[%emt 0:02:47] [#]} 22. Bxb5 {[%emt 0:14:10] This bishop
pair is nice.} (22. Rd1 $1 $16) 22... Qxd5 $14 {[%emt 0:04:36]} 23. Qxd5 {
[%emt 0:00:22]} Bxd5 {[%emt 0:00:05]} 24. Rc1 {[%emt 0:01:51]} Ne6 {[%emt 0:00:
00]} 25. Rfd1 {[%emt 0:02:18]} Rd8 {[%emt 0:02:38]} 26. Bg3 {[%emt 0:10:47]} c6
{[%emt 0:03:57]} 27. Bd3 {[%emt 0:03:08]} Rfd7 {[%emt 0:01:51]} (27... Bb3 $5 {
[%cal Rb3d1]} 28. Bc2 Rxd1+ 29. Bxd1 Bxd1 30. Rxd1 c5 $11) 28. Bf5 {[%emt 0:00:
00][%cal Yd1d5] And now Rxd5! would win.} g6 {[%emt 0:00:36]} 29. Bg4 {[%emt 0:
00:00][%cal Yd1d5] Black must now prevent Rxd5!} Kf7 {[%emt 0:00:39]} 30. Re1 {
[%emt 0:00:49]} Re8 {[%emt 0:00:56] The position is equal.} 31. h4 {[%emt 0:00:
00]} h5 {[%emt 0:01:17]} 32. Be2 {[%emt 0:03:03]} Nd4 {[%emt 0:05:43]} 33. Bd3
{[%emt 0:00:24][%cal Yd3g6] Strongly threatening Bxg6+!} Rxe1+ {[%emt 0:00:24]}
34. Rxe1 {[%emt 0:00:02]} c5 {[%emt 0:02:03]} 35. Re5 {[%emt 0:03:26] Black
should prevent Rg5.} Be6 {[%emt 0:13:21]} 36. Rxc5 {[%emt 0:01:49]} Nf3+ $1 {
[%emt 0:00:27] [#] Discovered Attack} 37. gxf3 {[%emt 0:00:14]} Rxd3 $11 {
[%emt 0:00:04] Endgame KRB-KRB} 38. Kg2 {[%emt 0:01:23]} Bd5 {[%emt 0:00:42]}
39. Rc1 {[%emt 0:02:07]} Bxf3+ {[%emt 0:00:22]} 40. Kh2 {[%emt 0:00:27]} Ke6 {
[%emt 0:00:47]} 41. Re1+ {[%emt 0:00:59]} Kf5 {[%emt 0:00:00]} 42. Re5+ {
[%emt 0:00:28]} Kf6 {[%emt 0:00:25]} 43. Re3 {[%emt 0:00:20]} Rxe3 {[%emt 0:00:
37]} 44. fxe3 {[%emt 0:00:02]} Kf5 {[%emt 0:00:07]} 45. Bf4 {[%emt 0:00:14]
Weighted Error Value: White=0.07 (flawless) /Black=0.04 (flawless)} 1/2-1/2

[Event "44th Chess Olympiad Women 2022"]
[Site "Chennai"]
[Date "2022.08.03"]
[Round "6.25"]
[White "Asgharzadeh, Mitra"]
[Black "Khan, Nazrana"]
[Result "1-0"]
[WhiteElo "1988"]
[BlackElo "1829"]
[Annotator "NA RC"]
[PlyCount "87"]
[EventDate "2022.??.??"]
[TimeControl "60"]

1. e4 {[%emt 0:00:02]} c5 {[%emt 0:00:08]} 2. Nf3 {[%emt 0:00:10]} e6 {[%emt 0:
00:00]} 3. d3 {[%emt 0:00:07]} Nc6 {[%emt 0:00:47]} 4. g3 {[%emt 0:00:16]} g6 {
[%emt 0:01:37]} 5. Bg2 {[%emt 0:00:08]} Bg7 {[%emt 0:00:19]} 6. O-O {[%emt 0:
00:00]} Nge7 {[%emt 0:01:12]} 7. c3 {[%emt 0:00:45]} O-O {[%emt 0:01:14]} 8.
Re1 {[%emt 0:00:46]} Qc7 {[%emt 0:02:11]} 9. Nbd2 {[%emt 0:02:12]} a6 {[%emt 0:
00:00]} 10. h4 {[%emt 0:00:31]} h5 {[%emt 0:03:23]} 11. Nf1 {[%emt 0:02:56]} b5
{[%emt 0:06:30]} 12. Bf4 {[%emt 0:11:02]} e5 {[%emt 0:03:48]} 13. Be3 {[%emt 0:
00:00]} d6 {[%emt 0:02:19]} 14. Qd2 {[%emt 0:02:18]} Bb7 {[%emt 0:07:58]} 15.
N1h2 {[%emt 0:02:51]} Bc8 {[%emt 0:07:07]} 16. Ng5 {[%emt 0:04:54]} f6 {
[%emt 0:05:17]} 17. Nh3 {[%emt 0:02:23]} Nd8 {[%emt 0:06:13]} 18. f4 {[%emt 0:
00:00]} Rb8 {[%emt 0:06:45]} 19. Rf1 {[%emt 0:02:55]} Bd7 {[%emt 0:12:27]} 20.
f5 {[%emt 0:14:33]} Qc8 {[%emt 0:04:11]} 21. Nf2 {[%emt 0:05:02]} gxf5 {
[%emt 0:02:22]} 22. Qe2 {[%emt 0:00:57]} Be8 {[%emt 0:03:58]} 23. Bf3 {[%emt 0:
00:00]} fxe4 {[%emt 0:06:32]} 24. dxe4 {[%emt 0:00:47]} f5 {[%emt 0:02:03]} 25.
Bg5 {[%emt 0:00:25]} Qe6 {[%emt 0:03:09]} 26. Bxh5 {[%emt 0:01:32]} Bxh5 {
[%emt 0:04:11]} 27. Qxh5 {[%emt 0:00:03]} Ndc6 {[%emt 0:02:33]} 28. exf5 {
[%emt 0:06:28]} Qxf5 {[%emt 0:01:56]} 29. Rad1 {[%emt 0:03:01]} d5 {[%emt 0:00:
00]} 30. Nd3 {[%emt 0:01:37]} Qh3 {[%emt 0:00:42]} 31. Qg4 {[%emt 0:01:30]}
Qxg4 {[%emt 0:00:30]} 32. Nxg4 {[%emt 0:00:03]} c4 {[%emt 0:00:33]} 33. Nc5 {
[%emt 0:02:01]} Ng6 {[%emt 0:00:40]} 34. Rxd5 {[%emt 0:02:22]} Rxf1+ {[%emt 0:
00:00]} 35. Kxf1 {[%emt 0:00:02]} Nce7 {[%emt 0:00:20]} 36. Rd7 {[%emt 0:01:20]
} Nf5 {[%emt 0:05:20]} 37. Ne4 {[%emt 0:05:02]} Nf8 {[%emt 0:00:00]} 38. Ra7 {
[%emt 0:04:18]} Ne6 {[%emt 0:00:00]} 39. Nef6+ {[%emt 0:01:21]} Kh8 {[%emt 0:
00:00]} 40. Nxe5 {[%emt 0:02:57]} Nxg3+ {[%emt 0:00:00]} 41. Kg2 {[%emt 0:00:
00]} Bxf6 {[%emt 0:03:12]} 42. Bxf6+ {[%emt 0:00:00]} Kg8 {[%emt 0:03:14]} 43.
Kxg3 {[%emt 0:00:00]} Rf8 {[%emt 0:02:37]} 44. Ng4 {[%emt 0:00:00]} 1-0

[Event "44th Chess Olympiad Women 2022"]
[Site "Chennai"]
[Date "2022.08.03"]
[Round "6.25"]
[White "Jannatul, Ferdous"]
[Black "Mahdian, Anousha"]
[Result "1/2-1/2"]
[WhiteElo "1815"]
[BlackElo "2161"]
[Annotator "TA"]
[PlyCount "129"]
[EventDate "2022.??.??"]
[TimeControl "60"]

{[%evp 21,129,16,24,20,23,11,20,10,20,21,17,-21,-22,-37,-19,-16,-28,-16,0,-25,
-18,-30,-28,-24,11,15,8,9,6,12,35,54,59,24,18,10,58,54,92,92,91,0,38,45,40,47,
77,79,80,0,0,0,0,0,0,-72,0,0,0,0,0,0,0,0,0,0,0,0,0,0,0,0,0,0,0,0,0,0,0,0,0,0,0,
0,0,0,0,0,0,0,0,0,0,0,0,0,0,0,0,0,0,0,0,0,0,0,0,0,0,0]} 1. e4 {[%emt 0:00:13]}
c6 {[%emt 0:00:04]} 2. d4 {[%emt 0:00:05]} d5 {[%emt 0:00:03]} 3. Nc3 {[%emt 0:
00:00]} dxe4 {[%emt 0:01:24]} 4. Nxe4 {[%emt 0:00:10]} Nf6 {[%emt 0:00:10]} 5.
Nxf6+ {[%emt 0:00:24]} exf6 {[%emt 0:00:03]} 6. c3 {[%emt 0:00:10]} Bd6 {
[%emt 0:00:05]} 7. Bd3 {[%emt 0:00:05]} O-O {[%emt 0:00:06]} 8. Ne2 {[%emt 0:
00:00][%cal Yg1e2,Ye2g3,Yg3e4]} Re8 {[%emt 0:00:16]} 9. O-O {[%emt 0:00:00]}
Nd7 {[%emt 0:02:37]} 10. Bf4 {[%emt 0:00:30] 10.Bf4 scores better than 10.Ng3.}
Nf8 {[%emt 0:00:21]} 11. Bxd6 {[%emt 0:00:20]} Qxd6 {[%emt 0:00:04]} 12. Ng3 {
[%emt 0:00:21] B15: Caro-Kann: 3 Nc3:3...g6 and 3...dxe4 4 Nxe4 Nf6 5 Nxf6+
exf6.} g6 {[%emt 0:17:13]} 13. Ne4 {[%emt 0:00:58]} Qd8 {[%emt 0:00:20]} 14.
Re1 {[%emt 0:00:19][%cal Ye4f6] [#] Black must now prevent Nxf6+!} Ne6 {
[%emt 0:02:42] [#]} 15. Qf3 $146 {[%emt 0:02:09]} ({Predecessor:} 15. Bc4 f5
16. Nd2 Ng5 17. Rxe8+ Qxe8 18. Nf3 Be6 19. Nxg5 Bxc4 20. b3 Be6 21. Qd2 {
½-½ (40) Budima,A (2171)-Dishman,S (2316) Struga 2021}) 15... f5 {[%emt 0:00:
00]} 16. Nc5 {[%emt 0:00:34]} Nxc5 {[%emt 0:05:44]} 17. dxc5 {[%emt 0:00:41]}
Rxe1+ {[%emt 0:00:21]} 18. Rxe1 {[%emt 0:00:09]} Be6 {[%emt 0:00:11] Against
Bc4} 19. a3 {[%emt 0:18:56]} a5 {[%emt 0:13:48]} 20. h3 {[%emt 0:16:23]} a4 {
[%emt 0:01:01]} 21. Qg3 {[%emt 0:04:17]} f4 {[%emt 0:14:20]} 22. Qf3 {[%emt 0:
00:00]} Qg5 {[%emt 0:00:11]} 23. Re4 {[%emt 0:13:40]} Qxc5 {[%emt 0:22:40] ...
Bd5 is the strong threat.} 24. Qxf4 {[%emt 0:01:54]} b5 {[%emt 0:02:05]} 25.
Rd4 {[%emt 0:03:59]} Bd5 {[%emt 0:04:47]} 26. Qe5 {[%emt 0:15:29]} Qf8 {
[%emt 0:03:29]} 27. c4 {[%emt 0:07:31]} (27. Bxb5 $5 Re8 28. Qg5 $14) 27... Re8
{[%emt 0:01:21]} 28. Qf4 {[%emt 0:00:15]} bxc4 {[%emt 0:03:11]} (28... Bxc4 $11
{should be considered.} 29. Bxc4 c5) 29. Bxc4 $14 {[%emt 0:00:05]} Qg7 {
[%emt 0:03:36]} 30. Bxd5 {[%emt 0:06:40]} cxd5 $16 {[%emt 0:00:01] Endgame
KQR-KQR} 31. Qd2 {[%emt 0:00:03]} (31. Rd2 $16) 31... Re1+ {[%emt 0:00:00]} 32.
Kh2 {[%emt 0:00:38]} Re2 {[%emt 0:00:36]} 33. Qf4 {[%emt 0:02:02]} Rxb2 {
[%emt 0:00:49]} 34. Rxd5 {[%emt 0:01:07] And now Rd8+ would win.} h5 {[%emt 0:
00:26]} 35. Qxa4 {[%emt 0:02:05]} (35. Rd8+ $16 Kh7 36. Ra8) 35... Rxf2 $11 {
[%emt 0:00:16]} 36. Qe8+ {[%emt 0:00:10]} Kh7 {[%emt 0:00:04]} 37. a4 {[%emt 0:
02:24]} Qf6 {[%emt 0:00:31] ( -> ...Qf4+)} (37... Qb2 $5 38. Qe4 Kg7 $11) 38.
Qe5 {[%emt 0:01:01] [#]} (38. Qe4 $11) 38... Qf3 {[%emt 0:00:44]} ({Black
should try} 38... Qc6 $1 $17) 39. Qg5 {[%emt 0:00:49] Active counter play! The
position is equal.} Qf4+ {[%emt 0:00:58]} 40. Qxf4 {[%emt 0:00:23]} Rxf4 {
[%emt 0:00:03] KR-KR} 41. Ra5 {[%emt 0:30:01]} h4 {[%emt 0:30:34]} 42. Ra7 {
[%emt 0:00:00]} Kh6 {[%emt 0:00:00]} 43. a5 {[%emt 0:00:00][%cal Ya4a5,Ya5a6,
Ya6a7]} f5 {[%emt 0:00:00]} 44. a6 {[%emt 0:00:00]} Ra4 {[%emt 0:00:00]} 45.
Kg1 {[%emt 0:00:00]} Ra1+ {[%emt 0:00:00]} 46. Kf2 {[%emt 0:00:00]} Kg5 {
[%emt 0:00:00]} 47. Ra8 $1 {[%emt 0:00:00]} Kf6 {[%emt 0:00:00]} 48. Ke3 {
[%emt 0:00:00]} (48. a7 $5 {[%cal Ra8f8]} Kg5 49. Kf3 $11) 48... Kg5 {[%emt 0:
00:47]} 49. a7 {[%emt 0:00:00]} Ra4 {[%emt 0:00:13]} 50. Kf3 {[%emt 0:00:00]}
Ra3+ {[%emt 0:00:04]} 51. Ke2 $1 {[%emt 0:00:00]} Kf4 {[%emt 0:00:43]} 52. Rg8
$1 {[%emt 0:00:00]} Rxa7 {[%emt 0:00:12]} 53. Rxg6 {[%emt 0:00:00]} Ra2+ {
[%emt 0:00:08]} 54. Kf1 {[%emt 0:00:00]} Ra4 {[%emt 0:00:00]} 55. Kf2 {[%emt 0:
00:02]} Ra2+ {[%emt 0:00:05]} 56. Kf1 $1 {[%emt 0:00:10]} Rb2 {[%emt 0:00:15]}
57. Rg8 {[%emt 0:00:54]} Ke3 {[%emt 0:00:29][%cal Rb2b1]} 58. Re8+ {[%emt 0:00:
33]} Kf4 {[%emt 0:00:09]} 59. Rg8 {[%emt 0:00:02]} Ra2 {[%emt 0:00:06]} 60. Rg7
{[%emt 0:00:18]} Ke3 {[%emt 0:00:49][%cal Ra2a1]} 61. Re7+ {[%emt 0:00:05]} Kf4
{[%emt 0:00:14]} 62. Rg7 {[%emt 0:00:02]} Ra4 {[%emt 0:00:17]} 63. Kf2 {
[%emt 0:00:33]} Ra2+ {[%emt 0:00:05]} 64. Kf1 {[%emt 0:00:11]} Ke3 {[%emt 0:00:
07][%cal Ra2a1]} 65. Re7+ {[%emt 0:00:03] Weighted Error Value: White=0.09 
(flawless) /Black=0.07 (flawless)} 1/2-1/2

[Event "44th Chess Olympiad Women 2022"]
[Site "Chennai"]
[Date "2022.08.03"]
[Round "6.25"]
[White "Masoumi, Sahar"]
[Black "Noshin, Anjum"]
[Result "1/2-1/2"]
[WhiteElo "1956"]
[BlackElo "2027"]
[Annotator "NA RC"]
[PlyCount "145"]
[EventDate "2022.??.??"]
[TimeControl "60"]

1. e4 {[%emt 0:00:06]} e5 {[%emt 0:00:09]} 2. Nf3 {[%emt 0:00:05]} Nc6 {
[%emt 0:00:11]} 3. Bb5 {[%emt 0:00:09]} a6 {[%emt 0:00:06]} 4. Ba4 {[%emt 0:00:
00]} Nf6 {[%emt 0:00:05]} 5. O-O {[%emt 0:00:12]} b5 {[%emt 0:00:06]} 6. Bb3 {
[%emt 0:00:05]} Bc5 {[%emt 0:00:05]} 7. d3 {[%emt 0:01:03]} d6 {[%emt 0:00:07]}
8. c3 {[%emt 0:01:22]} O-O {[%emt 0:00:10]} 9. a4 {[%emt 0:01:56]} Rb8 {
[%emt 0:00:39]} 10. h3 {[%emt 0:02:02]} h6 {[%emt 0:00:23]} 11. Re1 {[%emt 0:
00:00]} Re8 {[%emt 0:00:51]} 12. Nbd2 {[%emt 0:01:46]} Bb6 {[%emt 0:04:03]} 13.
Nf1 {[%emt 0:03:41]} Ne7 {[%emt 0:08:02]} 14. Ng3 {[%emt 0:11:02]} Ng6 {
[%emt 0:01:02]} 15. Be3 {[%emt 0:08:53]} Bxe3 {[%emt 0:19:23]} 16. fxe3 {
[%emt 0:00:27]} Be6 {[%emt 0:09:09]} 17. Bc2 {[%emt 0:03:59]} b4 {[%emt 0:00:
00]} 18. d4 {[%emt 0:03:01]} bxc3 {[%emt 0:00:41]} 19. bxc3 {[%emt 0:00:10]} c6
{[%emt 0:01:21]} 20. a5 {[%emt 0:09:07]} Qc7 {[%emt 0:09:36]} 21. Bd3 {[%emt 0:
00:00]} d5 {[%emt 0:01:19]} 22. exd5 {[%emt 0:12:29]} cxd5 {[%emt 0:03:30]} 23.
Bxg6 {[%emt 0:01:27]} exd4 {[%emt 0:01:47]} 24. Ne2 {[%emt 0:11:38]} fxg6 {
[%emt 0:00:17]} 25. Nfxd4 {[%emt 0:04:21]} Bf7 {[%emt 0:01:21]} 26. Qd3 {
[%emt 0:01:12]} Qc4 {[%emt 0:03:43]} 27. Qd2 {[%emt 0:07:07]} Ne4 {[%emt 0:00:
00]} 28. Qc2 {[%emt 0:00:06]} Nd6 {[%emt 0:02:11]} 29. Nc1 {[%emt 0:04:10]}
Rbc8 {[%emt 0:05:58]} 30. Na2 {[%emt 0:01:18]} Nb5 {[%emt 0:00:42]} 31. Rac1 {
[%emt 0:01:54]} Nxd4 {[%emt 0:00:44]} 32. exd4 {[%emt 0:00:05]} Rxe1+ {[%emt 0:
00:00]} 33. Rxe1 {[%emt 0:00:05]} Qxd4+ {[%emt 0:00:10]} 34. cxd4 {[%emt 0:00:
00]} Rxc2 {[%emt 0:00:05]} 35. Nb4 {[%emt 0:00:15]} Rc4 {[%emt 0:01:49]} 36.
Nxa6 {[%emt 0:00:06]} Ra4 {[%emt 0:01:01]} 37. Nc7 {[%emt 0:01:53]} Rxa5 {
[%emt 0:00:05]} 38. Re5 {[%emt 0:00:13]} Ra4 {[%emt 0:01:43]} 39. Nxd5 {
[%emt 0:00:13]} Rxd4 {[%emt 0:00:06]} 40. Ne3 {[%emt 0:00:56]} Rd8 {[%emt 0:00:
00]} 41. Kf2 {[%emt 0:30:31]} Re8 {[%emt 0:35:46]} 42. Rxe8+ {[%emt 0:01:50]}
Bxe8 {[%emt 0:00:05]} 43. Nc4 {[%emt 0:00:37]} g5 {[%emt 0:00:55]} 44. Ne5 {
[%emt 0:01:10]} g6 {[%emt 0:01:19]} 45. Kg3 {[%emt 0:03:22]} Kg7 {[%emt 0:00:
00]} 46. Nc4 {[%emt 0:00:00]} Kf6 {[%emt 0:00:00]} 47. Ne3 {[%emt 0:00:00]} h5
{[%emt 0:00:00]} 48. Nc4 {[%emt 0:00:00]} Bd7 {[%emt 0:00:00]} 49. Ne3 {
[%emt 0:00:00]} Ke5 {[%emt 0:00:00]} 50. Kf2 {[%emt 0:00:00]} Bc6 {[%emt 0:00:
00]} 51. Nc4+ {[%emt 0:00:00]} Kf5 {[%emt 0:00:00]} 52. Ne3+ {[%emt 0:00:00]}
Kf4 {[%emt 0:00:00]} 53. Nc4 {[%emt 0:00:00]} Bd7 {[%emt 0:00:00]} 54. Ne3 {
[%emt 0:00:00]} g4 {[%emt 0:00:00]} 55. hxg4 {[%emt 0:00:00]} Bxg4 {[%emt 0:00:
00]} 56. g3+ {[%emt 0:00:00]} Ke4 {[%emt 0:00:00]} 57. Ng2 {[%emt 0:00:00]} g5
{[%emt 0:00:00]} 58. Ne1 {[%emt 0:00:00]} Bd7 {[%emt 0:00:00]} 59. Nf3 {
[%emt 0:00:00]} Kf5 {[%emt 0:00:00]} 60. Nh2 {[%emt 0:00:00]} g4 {[%emt 0:00:
00]} 61. Nf1 {[%emt 0:00:00]} Kg5 {[%emt 0:00:00]} 62. Ne3 {[%emt 0:00:00]} Bb5
{[%emt 0:00:00]} 63. Ng2 {[%emt 0:00:00]} Bc6 {[%emt 0:00:00]} 64. Ne3 {
[%emt 0:00:00]} Bf3 {[%emt 0:00:00]} 65. Nf1 {[%emt 0:00:12]} Be4 {[%emt 0:00:
00]} 66. Ne3 {[%emt 0:00:12]} Bf3 {[%emt 0:00:00]} 67. Nf1 {[%emt 0:00:06]} h4
{[%emt 0:00:00]} 68. gxh4+ {[%emt 0:00:26]} Kxh4 {[%emt 0:00:00]} 69. Nh2 {
[%emt 0:00:50]} g3+ {[%emt 0:00:00]} 70. Kxf3 {[%emt 0:00:13]} Kh3 {[%emt 0:00:
00]} 71. Ng4 {[%emt 0:00:26]} g2 {[%emt 0:00:00]} 72. Kf2 {[%emt 0:00:11]} Kxg4
{[%emt 0:00:00]} 73. Kxg2 {[%emt 0:00:04]} 1/2-1/2

[Event "44th Chess Olympiad Women 2022"]
[Site "Chennai"]
[Date "2022.08.03"]
[Round "6.25"]
[White "Sultana, Sharmin Shirin"]
[Black "Alinasab, Mobina"]
[Result "0-1"]
[WhiteElo "1995"]
[BlackElo "2364"]
[Annotator "TA"]
[PlyCount "86"]
[EventDate "2022.??.??"]
[TimeControl "60"]

{[%evp 17,86,14,28,16,21,14,12,14,27,35,35,33,7,-18,0,-41,-44,-48,-38,-37,-33,
-33,-14,-46,-31,-43,-39,-44,0,-52,-48,-72,-62,-73,21,9,28,-26,-5,-91,-100,-108,
-112,-194,-194,-152,-71,-198,-197,-187,-193,-322,-345,-364,-366,-500,-481,
-1065,-1054,-1033,-1039,-1013,-1025,-1189,-1191,-1572,-1107,-2321,-1931,-29983,
-29982]} 1. d4 {[%emt 0:00:07]} Nf6 {[%emt 0:00:21]} 2. Nf3 {[%emt 0:00:07]} e6
{[%emt 0:00:06]} 3. e3 {[%emt 0:00:22]} b6 {[%emt 0:00:34]} 4. Bd3 {[%emt 0:00:
00]} Bb7 {[%emt 0:00:25]} 5. Nbd2 {[%emt 0:00:47]} c5 {[%emt 0:01:09]} 6. O-O {
[%emt 0:00:29]} cxd4 {[%emt 0:00:30]} 7. exd4 {[%emt 0:00:03]} Be7 {[%emt 0:00:
00]} 8. Qe2 {[%emt 0:01:04]} O-O {[%emt 0:00:39]} 9. c3 {[%emt 0:00:39]} d6 {
[%emt 0:01:09]} 10. Nc4 {[%emt 0:01:41] A47:1 d4 Nf6 2 Nf3 b6: Torre, London
and Colle Systems.} Qc7 {[%emt 0:03:46]} 11. h3 {[%emt 0:01:27]} Nbd7 {[%emt 0:
00:00]} 12. Bf4 {[%emt 0:00:26] The position is equal.} Rfe8 {[%emt 0:01:19]}
13. Bh2 {[%emt 0:00:48] [#]} Rac8 $146 {[%emt 0:01:46][%cal Yb7e4]} ({
Predecessor:} 13... Nf8 14. a4 a6 15. a5 b5 16. Nb6 Ra7 17. Nd2 N8d7 18. Nxd7
Qxd7 19. Rfe1 Qc6 {0-1 (61) Sukandar,I (2413)-Tomilova,E (2353) Chess.com INT
2021}) 14. Nfd2 {[%emt 0:08:04]} Bf8 {[%emt 0:01:57]} 15. f4 {[%emt 0:01:36]}
g6 {[%emt 0:03:37]} 16. Rae1 {[%emt 0:03:17]} b5 {[%emt 0:02:51][%cal Yb6b5,
Yb5b4]} 17. Ne3 {[%emt 0:03:08]} a6 {[%emt 0:00:20]} 18. Qf2 {[%emt 0:00:00]}
Qb6 {[%emt 0:04:01]} 19. Bg3 {[%emt 0:14:07]} a5 {[%emt 0:03:18]} 20. Bh4 {
[%emt 0:09:39]} b4 {[%emt 0:07:33]} 21. Nec4 {[%emt 0:13:37]} Qc7 {[%emt 0:11:
02]} 22. Rc1 {[%emt 0:10:23]} Bc6 {[%emt 0:05:17]} 23. Ne3 {[%emt 0:00:00]} (
23. Ne5 $11) 23... bxc3 $15 {[%emt 0:00:57]} 24. bxc3 {[%emt 0:00:29]} Rb8 {
[%emt 0:01:00]} 25. f5 {[%emt 0:05:07]} Bg7 {[%emt 0:11:24]} (25... exf5 $17 {
aiming for ...Bh6.} 26. g4 Rb2 27. gxf5 Bb7) 26. fxg6 $11 {[%emt 0:01:07]} fxg6
{[%emt 0:05:50]} 27. Bg3 {[%emt 0:05:45]} (27. Nf3 $142) 27... e5 {[%emt 0:01:
33]} 28. dxe5 {[%emt 0:01:57]} (28. Bh2 $11 {keeps the balance.}) 28... Nxe5
$17 {[%emt 0:00:35]} 29. Bxe5 {[%emt 0:00:31]} dxe5 {[%emt 0:00:27][%cal Yd6e5,
Ye5e4]} 30. Ndc4 {[%emt 0:01:00]} (30. Qh4 $17 Nh5 31. Nf3) 30... e4 $19 {
[%emt 0:01:06]} 31. Be2 {[%emt 0:00:46]} Rf8 {[%emt 0:05:23]} ({Black should
play} 31... Nd5 {Hoping for ...Rf8.} 32. Nxd5 Bxd5) 32. Qh4 {[%emt 0:00:23]
Loses the game.} (32. Qf4 $17 {was the only chance.} Qxf4 33. Rxf4) 32... Nd5 {
[%emt 0:02:00][%cal Yf6d5,Yd5c3,Yc3a2,Ya2c3,Yc3d1,Yd1e3]} 33. Kh1 {[%emt 0:06:
24]} Nxc3 {[%emt 0:01:59]} 34. Bg4 {[%emt 0:00:04]} (34. Rc2 $142) 34... Nxa2 {
[%emt 0:02:40]} 35. Rcd1 {[%emt 0:01:21]} Nc3 {[%emt 0:05:14]} 36. Be6+ {
[%emt 0:00:07]} Kh8 {[%emt 0:00:07]} 37. Nd6 {[%emt 0:01:39]} (37. Rxf8+ $142
Rxf8 38. Rd2) 37... Rxf1+ {[%emt 0:03:03]} 38. Nxf1 {[%emt 0:00:01]} Rf8 {
[%emt 0:01:52]} 39. Nf7+ {[%emt 0:00:13]} Rxf7 {[%emt 0:00:58]} 40. Bxf7 {
[%emt 0:00:49]} Nxd1 {[%emt 0:01:08]} 41. Bxg6 {[%emt 0:05:58]} h6 {[%emt 0:01:
06]} 42. Bf5 {[%emt 0:08:53]} Qd6 {[%emt 0:00:00]} 43. Nh2 {[%emt 0:03:24]} Ne3
{[%emt 0:00:18] Weighted Error Value: White=0.93/Black=0.34} 0-1